[Event "Titled Tuesday Blitz August 08 Early 2023"]
[White "Le, Tuan Minh"]
[Black "Grischuk, Alexander"]
[WhiteFideId "12401153"]
[BlackFideId "4126025"]
[WhiteElo "2977"]
[BlackElo "3041"]
[Result "1/2-1/2"]
[Round "7"]
[TimeControl "180+1"]
[Date "2023.08.08"]
[WhiteClock "0:00:04"]
[BlackClock "0:00:02"]
[Board "5"]

1. d4 {[%clk 0:02:53]}  Nf6 {[%clk 0:03:00]} 2. Nf3 {[%clk 0:02:53]}  d6 {[%clk 0:03:00]} 3. g3 {[%clk 0:02:51]}  Nbd7 {[%clk 0:02:58]} 4. Bg2 {[%clk 0:02:52]}  e5 {[%clk 0:02:59]} 5. O-O {[%clk 0:02:52]}  e4 {[%clk 0:02:58]} 6. Ng5 {[%clk 0:02:51]}  d5 {[%clk 0:02:57]} 7. c4 {[%clk 0:02:52]}  c6 {[%clk 0:02:48]} 8. cxd5 {[%clk 0:02:52]}  cxd5 {[%clk 0:02:48]} 9. Nc3 {[%clk 0:02:53]}  h6 {[%clk 0:02:42]} 10. Nh3 {[%clk 0:02:52]}  Bb4 {[%clk 0:02:43]} 11. Qb3 {[%clk 0:02:52]}  Bxc3 {[%clk 0:02:42]} 12. Qxc3 {[%clk 0:02:52]}  O-O {[%clk 0:02:38]} 13. f3 {[%clk 0:02:52]}  Re8 {[%clk 0:02:35]} 14. Nf2 {[%clk 0:02:51]}  Nf8 {[%clk 0:02:16]} 15. Bf4 {[%clk 0:02:42]}  Ng6 {[%clk 0:02:11]} 16. Be3 {[%clk 0:02:29]}  Bf5 {[%clk 0:02:06]} 17. Rac1 {[%clk 0:02:29]}  Qe7 {[%clk 0:02:00]} 18. Rfe1 {[%clk 0:02:28]}  Rac8 {[%clk 0:01:59]} 19. Qd2 {[%clk 0:02:29]}  Rxc1 {[%clk 0:01:57]} 20. Qxc1 {[%clk 0:02:21]}  Rc8 {[%clk 0:01:51]} 21. Qd2 {[%clk 0:02:11]}  exf3 {[%clk 0:01:29]} 22. exf3 {[%clk 0:02:12]}  Rc2 {[%clk 0:01:30]} 23. Qd1 {[%clk 0:02:12]}  Qc7 {[%clk 0:01:12]} 24. Re2 {[%clk 0:02:12]}  Rxe2 {[%clk 0:01:08]} 25. Qxe2 {[%clk 0:02:13]}  Nf8 {[%clk 0:00:53]} 26. Qd2 {[%clk 0:02:08]}  Ne6 {[%clk 0:00:47]} 27. Bf1 {[%clk 0:02:09]}  a6 {[%clk 0:00:44]} 28. Nd3 {[%clk 0:02:07]}  Nd7 {[%clk 0:00:43]} 29. b3 {[%clk 0:02:03]}  Nb8 {[%clk 0:00:42]} 30. Nb4 {[%clk 0:01:39]}  Qd7 {[%clk 0:00:34]} 31. Qc3 {[%clk 0:01:40]}  a5 {[%clk 0:00:31]} 32. Nd3 {[%clk 0:01:40]}  Nc6 {[%clk 0:00:31]} 33. Nc5 {[%clk 0:01:29]}  Nxc5 {[%clk 0:00:31]} 34. Qxc5 {[%clk 0:01:30]}  g5 {[%clk 0:00:21]} 35. Kf2 {[%clk 0:01:29]}  Kg7 {[%clk 0:00:21]} 36. Bb5 {[%clk 0:01:19]}  Bb1 {[%clk 0:00:20]} 37. a3 {[%clk 0:01:17]}  Qh3 {[%clk 0:00:19]} 38. Kg1 {[%clk 0:01:13]}  Qe6 {[%clk 0:00:19]} 39. Qc3 {[%clk 0:01:09]}  Ne7 {[%clk 0:00:19]} 40. Bf2 {[%clk 0:01:06]}  b6 {[%clk 0:00:19]} 41. a4 {[%clk 0:00:57]}  Nf5 {[%clk 0:00:17]} 42. b4 {[%clk 0:00:57]}  Nd6 {[%clk 0:00:15]} 43. Bf1 {[%clk 0:00:43]}  g4 {[%clk 0:00:15]} 44. bxa5 {[%clk 0:00:42]}  bxa5 {[%clk 0:00:14]} 45. fxg4 {[%clk 0:00:32]}  Qxg4 {[%clk 0:00:13]} 46. Qxa5 {[%clk 0:00:30]}  Be4 {[%clk 0:00:06]} 47. Qc3 {[%clk 0:00:28]}  Qd1 {[%clk 0:00:06]} 48. a5 {[%clk 0:00:23]}  Nc4 {[%clk 0:00:07]} 49. Be1 {[%clk 0:00:18]}  Nxa5 {[%clk 0:00:02]} 50. Qd2 {[%clk 0:00:16]}  Qxd2 {[%clk 0:00:02]} 51. Bxd2 {[%clk 0:00:17]}  Nc4 {[%clk 0:00:03]} 52. Bc1 {[%clk 0:00:16]}  h5 {[%clk 0:00:03]} 53. Kf2 {[%clk 0:00:17]}  Kg6 {[%clk 0:00:03]} 54. Be2 {[%clk 0:00:15]}  f6 {[%clk 0:00:04]} 55. g4 {[%clk 0:00:13]}  hxg4 {[%clk 0:00:04]} 56. Bxg4 {[%clk 0:00:14]}  Bf5 {[%clk 0:00:04]} 57. Bf3 {[%clk 0:00:14]}  Be4 {[%clk 0:00:04]} 58. Be2 {[%clk 0:00:14]}  Nd6 {[%clk 0:00:04]} 59. h4 {[%clk 0:00:07]}  Nf5 {[%clk 0:00:04]} 60. h5+ {[%clk 0:00:08]}  Kg7 {[%clk 0:00:04]} 61. Be3 {[%clk 0:00:07]}  Nxe3 {[%clk 0:00:02]} 62. Kxe3 {[%clk 0:00:08]}  Kh6 {[%clk 0:00:03]} 63. Kf4 {[%clk 0:00:08]}  Bc2 {[%clk 0:00:03]} 64. Bf3 {[%clk 0:00:09]}  Bb1 {[%clk 0:00:04]} 65. Bxd5 {[%clk 0:00:06]}  Kxh5 {[%clk 0:00:04]} 66. Bf7+ {[%clk 0:00:05]}  Kh6 {[%clk 0:00:04]} 67. d5 {[%clk 0:00:06]}  Kg7 {[%clk 0:00:03]} 68. Bh5 {[%clk 0:00:06]}  Bd3 {[%clk 0:00:02]} 69. Ke3 {[%clk 0:00:05]}  Bb5 {[%clk 0:00:02]} 70. Kd4 {[%clk 0:00:05]}  f5 {[%clk 0:00:01]} 71. Kc5 {[%clk 0:00:04]}  Ba4 {[%clk 0:00:02]} 72. Kb4 {[%clk 0:00:05]}  Bd7 {[%clk 0:00:01]} 73. Kc5 {[%clk 0:00:05]}  Kf6 {[%clk 0:00:02]} 74. Kd6 {[%clk 0:00:06]}  Ba4 {[%clk 0:00:02]} 75. Kc7 {[%clk 0:00:04]}  f4 {[%clk 0:00:02]} 1/2-1/2


[Site "https://www.chess.com"]

[Event "Titled Tuesday Blitz August 08 Early 2023"]
[White "Carlsen, Magnus"]
[Black "Matlakov, Maxim"]
[WhiteFideId "1503014"]
[BlackFideId "4168003"]
[WhiteElo "3244"]
[BlackElo "2999"]
[Result "1/2-1/2"]
[Round "7"]
[TimeControl "180+1"]
[Date "2023.08.08"]
[WhiteClock "0:00:23"]
[BlackClock "0:00:10"]
[Board "6"]

1. Nf3 {[%clk 0:02:54]}  d5 {[%clk 0:03:00]} 2. e3 {[%clk 0:02:54]}  Nf6 {[%clk 0:03:00]} 3. c4 {[%clk 0:02:53]}  e6 {[%clk 0:02:59]} 4. b3 {[%clk 0:02:53]}  Bd6 {[%clk 0:02:58]} 5. Bb2 {[%clk 0:02:54]}  O-O {[%clk 0:02:58]} 6. g4 {[%clk 0:02:53]}  Nxg4 {[%clk 0:02:45]} 7. Rg1 {[%clk 0:02:53]}  f5 {[%clk 0:02:39]} 8. Nc3 {[%clk 0:02:48]}  c6 {[%clk 0:02:35]} 9. cxd5 {[%clk 0:02:37]}  exd5 {[%clk 0:02:31]} 10. h3 {[%clk 0:02:31]}  Nf6 {[%clk 0:02:28]} 11. Qc2 {[%clk 0:02:31]}  Qe7 {[%clk 0:02:19]} 12. Bd3 {[%clk 0:02:29]}  Na6 {[%clk 0:02:13]} 13. a3 {[%clk 0:02:26]}  Nc5 {[%clk 0:02:13]} 14. Ne2 {[%clk 0:02:18]}  Nxd3+ {[%clk 0:01:44]} 15. Qxd3 {[%clk 0:02:18]}  c5 {[%clk 0:01:42]} 16. Ng3 {[%clk 0:01:44]}  d4 {[%clk 0:01:38]} 17. O-O-O {[%clk 0:01:41]}  Ne4 {[%clk 0:01:35]} 18. exd4 {[%clk 0:01:37]}  Nxf2 {[%clk 0:01:26]} 19. Qc4+ {[%clk 0:01:35]}  Be6 {[%clk 0:01:25]} 20. d5 {[%clk 0:01:35]}  Nxd1 {[%clk 0:01:24]} 21. Nxf5 {[%clk 0:01:27]}  Bxf5 {[%clk 0:01:16]} 22. Rxg7+ {[%clk 0:01:28]}  Qxg7 {[%clk 0:01:15]} 23. Bxg7 {[%clk 0:01:29]}  Kxg7 {[%clk 0:01:13]} 24. Kxd1 {[%clk 0:01:29]}  Rae8 {[%clk 0:01:03]} 25. Ng5 {[%clk 0:01:26]}  Rf6 {[%clk 0:00:53]} 26. Qa4 {[%clk 0:01:23]}  Re7 {[%clk 0:00:51]} 27. Qxa7 {[%clk 0:01:23]}  h6 {[%clk 0:00:49]} 28. Ne6+ {[%clk 0:01:24]}  Bxe6 {[%clk 0:00:49]} 29. dxe6 {[%clk 0:01:25]}  Rfxe6 {[%clk 0:00:49]} 30. Qa4 {[%clk 0:01:24]}  Be5 {[%clk 0:00:46]} 31. Qg4+ {[%clk 0:01:22]}  Rg6 {[%clk 0:00:44]} 32. Qf5 {[%clk 0:01:19]}  Rg5 {[%clk 0:00:38]} 33. Qf3 {[%clk 0:01:17]}  Rf7 {[%clk 0:00:36]} 34. Qe4 {[%clk 0:01:14]}  Bf4 {[%clk 0:00:35]} 35. Kc2 {[%clk 0:01:11]}  Re5 {[%clk 0:00:35]} 36. Qg2+ {[%clk 0:01:10]}  Kh7 {[%clk 0:00:34]} 37. Qf3 {[%clk 0:01:07]}  Ref5 {[%clk 0:00:31]} 38. Qe4 {[%clk 0:01:06]}  Kg7 {[%clk 0:00:30]} 39. a4 {[%clk 0:01:03]}  Bg5 {[%clk 0:00:29]} 40. h4 {[%clk 0:01:01]}  Bf4 {[%clk 0:00:29]} 41. Qg2+ {[%clk 0:01:00]}  Kh7 {[%clk 0:00:29]} 42. Qe4 {[%clk 0:01:01]}  Kg7 {[%clk 0:00:28]} 43. Qg2+ {[%clk 0:01:01]}  Kf8 {[%clk 0:00:29]} 44. Qe4 {[%clk 0:00:56]}  Re5 {[%clk 0:00:29]} 45. Qd3 {[%clk 0:00:51]}  Ke8 {[%clk 0:00:27]} 46. Qg6 {[%clk 0:00:45]}  Ke7 {[%clk 0:00:26]} 47. Qg2 {[%clk 0:00:42]}  Kf8 {[%clk 0:00:24]} 48. a5 {[%clk 0:00:31]}  Rd7 {[%clk 0:00:18]} 49. d3 {[%clk 0:00:27]}  Red5 {[%clk 0:00:16]} 50. Qg4 {[%clk 0:00:24]}  Rd4 {[%clk 0:00:14]} 51. Qf5+ {[%clk 0:00:25]}  Kg7 {[%clk 0:00:13]} 52. h5 {[%clk 0:00:21]}  Bg5 {[%clk 0:00:11]} 53. Qg6+ {[%clk 0:00:21]}  Kf8 {[%clk 0:00:10]} 54. Qf5+ {[%clk 0:00:21]}  Ke8 {[%clk 0:00:10]} 55. Qe5+ {[%clk 0:00:22]}  Kd8 {[%clk 0:00:10]} 56. Qb8+ {[%clk 0:00:22]}  Ke7 {[%clk 0:00:10]} 57. Qe5+ {[%clk 0:00:23]}  Kf7 {[%clk 0:00:10]} 58. Qf5+ {[%clk 0:00:23]}  Kg7 {[%clk 0:00:10]} 59. Qg6+ {[%clk 0:00:22]}  Kh8 {[%clk 0:00:09]} 60. Qe8+ {[%clk 0:00:22]}  Kg7 {[%clk 0:00:10]} 61. Qg6+ {[%clk 0:00:23]} 1/2-1/2


[Site "https://www.chess.com"]

[Event "Titled Tuesday Blitz August 08 Early 2023"]
[White "Pakleza, Zbigniew"]
[Black "Firouzja, Alireza"]
[WhiteFideId "1119290"]
[BlackFideId "12573981"]
[WhiteElo "2830"]
[BlackElo "3092"]
[Result "0-1"]
[Round "7"]
[TimeControl "180+1"]
[Date "2023.08.08"]
[WhiteClock "0:00:01"]
[BlackClock "0:00:03"]
[Board "7"]

1. d4 {[%clk 0:03:00]}  Nf6 {[%clk 0:02:53]} 2. Nf3 {[%clk 0:03:01]}  g6 {[%clk 0:02:53]} 3. Bf4 {[%clk 0:03:01]}  Bg7 {[%clk 0:02:53]} 4. e3 {[%clk 0:03:02]}  O-O {[%clk 0:02:53]} 5. Be2 {[%clk 0:03:02]}  d6 {[%clk 0:02:54]} 6. O-O {[%clk 0:03:02]}  Nc6 {[%clk 0:02:55]} 7. h3 {[%clk 0:03:03]}  Nd7 {[%clk 0:02:55]} 8. c4 {[%clk 0:03:03]}  e5 {[%clk 0:02:55]} 9. Bh2 {[%clk 0:03:04]}  exd4 {[%clk 0:02:42]} 10. exd4 {[%clk 0:03:05]}  Re8 {[%clk 0:02:42]} 11. Nc3 {[%clk 0:03:04]}  Nb6 {[%clk 0:02:43]} 12. Re1 {[%clk 0:02:59]}  Qf6 {[%clk 0:02:40]} 13. d5 {[%clk 0:02:43]}  Na5 {[%clk 0:02:28]} 14. Rc1 {[%clk 0:02:15]}  Bd7 {[%clk 0:01:52]} 15. c5 {[%clk 0:01:26]}  dxc5 {[%clk 0:01:44]} 16. Bxc7 {[%clk 0:01:27]}  Nac4 {[%clk 0:01:45]} 17. Bxc4 {[%clk 0:01:15]}  Nxc4 {[%clk 0:01:40]} 18. Ne4 {[%clk 0:01:08]}  Qa6 {[%clk 0:00:51]} 19. Nxc5 {[%clk 0:00:57]}  Nxb2 {[%clk 0:00:51]} 20. Nxa6 {[%clk 0:00:43]}  Nxd1 {[%clk 0:00:51]} 21. Nc5 {[%clk 0:00:44]}  Rxe1+ {[%clk 0:00:47]} 22. Nxe1 {[%clk 0:00:45]}  Nc3 {[%clk 0:00:47]} 23. Kh2 {[%clk 0:00:19]}  Bb5 {[%clk 0:00:44]} 24. Nxb7 {[%clk 0:00:14]}  Nxd5 {[%clk 0:00:35]} 25. Bg3 {[%clk 0:00:06]}  Nc3 {[%clk 0:00:35]} 26. a3 {[%clk 0:00:06]}  a6 {[%clk 0:00:25]} 27. Nf3 {[%clk 0:00:05]}  Ne2 {[%clk 0:00:22]} 28. Rc7 {[%clk 0:00:03]}  Nxg3 {[%clk 0:00:17]} 29. fxg3 {[%clk 0:00:04]}  Bf8 {[%clk 0:00:17]} 30. Ne5 {[%clk 0:00:03]}  Bxa3 {[%clk 0:00:13]} 31. Nxf7 {[%clk 0:00:03]}  Bf8 {[%clk 0:00:13]} 32. Nbd6 {[%clk 0:00:02]}  Be8 {[%clk 0:00:09]} 33. Nxe8 {[%clk 0:00:02]}  Rxe8 {[%clk 0:00:10]} 34. Ng5 {[%clk 0:00:02]}  Ra8 {[%clk 0:00:08]} 35. Nxh7 {[%clk 0:00:02]}  Bg7 {[%clk 0:00:06]} 36. Ng5 {[%clk 0:00:03]}  a5 {[%clk 0:00:07]} 37. Ne6 {[%clk 0:00:03]}  Bf6 {[%clk 0:00:05]} 38. Rc2 {[%clk 0:00:01]}  a4 {[%clk 0:00:05]} 39. Ra2 {[%clk 0:00:02]}  Kf7 {[%clk 0:00:05]} 40. Nf4 {[%clk 0:00:02]}  a3 {[%clk 0:00:05]} 41. h4 {[%clk 0:00:02]}  Bb2 {[%clk 0:00:03]} 42. Kh3 {[%clk 0:00:02]}  Kf6 {[%clk 0:00:04]} 43. Kg4 {[%clk 0:00:02]}  Rd8 {[%clk 0:00:02]} 44. Kf3 {[%clk 0:00:02]}  Ke5 {[%clk 0:00:02]} 45. Nxg6+ {[%clk 0:00:02]}  Kd5 {[%clk 0:00:03]} 46. h5 {[%clk 0:00:02]}  Kc4 {[%clk 0:00:03]} 47. Kg4 {[%clk 0:00:02]}  Kb3 {[%clk 0:00:03]} 48. Rxa3+ {[%clk 0:00:02]}  Kxa3 {[%clk 0:00:04]} 49. Kf5 {[%clk 0:00:02]}  Kb4 {[%clk 0:00:04]} 50. g4 {[%clk 0:00:03]}  Kc5 {[%clk 0:00:05]} 51. g5 {[%clk 0:00:02]}  Kd6 {[%clk 0:00:04]} 52. h6 {[%clk 0:00:02]}  Kd7 {[%clk 0:00:03]} 53. h7 {[%clk 0:00:01]}  Ba1 {[%clk 0:00:03]} 54. g3 {[%clk 0:00:01]}  Bb2 {[%clk 0:00:03]} 55. Kg4 {[%clk 0:00:02]}  Ke6 {[%clk 0:00:03]} 56. Kh5 {[%clk 0:00:03]}  Kf7 {[%clk 0:00:03]} 57. Kh6 {[%clk 0:00:02]}  Bg7+ {[%clk 0:00:03]} 58. Kh5 {[%clk 0:00:03]}  Ra8 {[%clk 0:00:03]} 59. g4 {[%clk 0:00:02]}  Rb8 {[%clk 0:00:03]} 60. Kh4 {[%clk 0:00:01]}  Kxg6 {[%clk 0:00:03]} 0-1


[Site "https://www.chess.com"]

[Event "Titled Tuesday Blitz August 08 Early 2023"]
[White "Remizov, Yaroslav"]
[Black "Sarana, Alexey"]
[WhiteFideId "34134015"]
[BlackFideId "24133795"]
[WhiteElo "2822"]
[BlackElo "3086"]
[Result "1-0"]
[Round "7"]
[TimeControl "180+1"]
[Date "2023.08.08"]
[WhiteClock "0:00:34"]
[BlackClock "0:00:03"]
[Board "8"]

1. e4 {[%clk 0:02:59]}  e5 {[%clk 0:02:59]} 2. Nf3 {[%clk 0:02:59]}  Nc6 {[%clk 0:03:00]} 3. Bc4 {[%clk 0:02:59]}  Bc5 {[%clk 0:03:00]} 4. c3 {[%clk 0:02:59]}  Nf6 {[%clk 0:03:00]} 5. d4 {[%clk 0:02:59]}  exd4 {[%clk 0:03:00]} 6. e5 {[%clk 0:03:00]}  d5 {[%clk 0:02:59]} 7. Bb5 {[%clk 0:03:00]}  Ne4 {[%clk 0:02:59]} 8. cxd4 {[%clk 0:03:01]}  Bb6 {[%clk 0:02:58]} 9. Nc3 {[%clk 0:03:01]}  O-O {[%clk 0:02:56]} 10. Be3 {[%clk 0:03:01]}  Bg4 {[%clk 0:02:56]} 11. h3 {[%clk 0:03:01]}  Bh5 {[%clk 0:02:56]} 12. Qc2 {[%clk 0:03:01]}  Bg6 {[%clk 0:02:54]} 13. Qb3 {[%clk 0:03:02]}  Ne7 {[%clk 0:02:53]} 14. O-O {[%clk 0:03:02]}  c6 {[%clk 0:02:53]} 15. Bd3 {[%clk 0:03:02]}  Nd2 {[%clk 0:02:52]} 16. Nxd2 {[%clk 0:03:01]}  Bxd3 {[%clk 0:02:52]} 17. Rfe1 {[%clk 0:03:02]}  Bg6 {[%clk 0:02:43]} 18. Na4 {[%clk 0:02:42]}  Nf5 {[%clk 0:02:40]} 19. Nf3 {[%clk 0:02:42]}  f6 {[%clk 0:02:38]} 20. exf6 {[%clk 0:02:36]}  Qxf6 {[%clk 0:02:36]} 21. Nxb6 {[%clk 0:02:22]}  axb6 {[%clk 0:02:36]} 22. Qxb6 {[%clk 0:02:20]}  Bh5 {[%clk 0:02:15]} 23. Ne5 {[%clk 0:02:00]}  Nxe3 {[%clk 0:01:15]} 24. fxe3 {[%clk 0:02:01]}  Qf2+ {[%clk 0:01:15]} 25. Kh2 {[%clk 0:01:57]}  Bf3 {[%clk 0:01:09]} 26. Nxf3 {[%clk 0:01:45]}  Rxf3 {[%clk 0:01:10]} 27. Qxb7 {[%clk 0:01:45]}  Raf8 {[%clk 0:00:45]} 28. Qxc6 {[%clk 0:01:44]}  Qg3+ {[%clk 0:00:42]} 29. Kh1 {[%clk 0:01:39]}  R3f5 {[%clk 0:00:42]} 30. e4 {[%clk 0:01:32]}  Rg5 {[%clk 0:00:33]} 31. Re2 {[%clk 0:01:30]}  h6 {[%clk 0:00:20]} 32. exd5 {[%clk 0:01:26]}  Rgf5 {[%clk 0:00:20]} 33. Qe6+ {[%clk 0:01:20]}  Kh8 {[%clk 0:00:20]} 34. Rg1 {[%clk 0:01:09]}  R5f6 {[%clk 0:00:16]} 35. Qe5 {[%clk 0:01:07]}  Qh4 {[%clk 0:00:15]} 36. d6 {[%clk 0:01:02]}  Rf5 {[%clk 0:00:15]} 37. Qe7 {[%clk 0:01:01]}  Qxd4 {[%clk 0:00:11]} 38. d7 {[%clk 0:00:54]}  Rf1 {[%clk 0:00:11]} 39. Qxf8+ {[%clk 0:00:48]}  Rxf8 {[%clk 0:00:12]} 40. Re8 {[%clk 0:00:48]}  Qxd7 {[%clk 0:00:08]} 41. Rxf8+ {[%clk 0:00:48]}  Kh7 {[%clk 0:00:09]} 42. Rf2 {[%clk 0:00:48]}  Qd4 {[%clk 0:00:08]} 43. Rgf1 {[%clk 0:00:47]}  h5 {[%clk 0:00:09]} 44. a3 {[%clk 0:00:47]}  g5 {[%clk 0:00:05]} 45. Rf7+ {[%clk 0:00:45]}  Kg8 {[%clk 0:00:05]} 46. R7f5 {[%clk 0:00:45]}  Qe3 {[%clk 0:00:03]} 47. b4 {[%clk 0:00:39]}  h4 {[%clk 0:00:02]} 48. b5 {[%clk 0:00:38]}  g4 {[%clk 0:00:01]} 49. hxg4 {[%clk 0:00:37]}  h3 {[%clk 0:00:02]} 50. R5f3 {[%clk 0:00:36]}  hxg2+ {[%clk 0:00:02]} 51. Kxg2 {[%clk 0:00:37]}  Qe2+ {[%clk 0:00:03]} 52. R1f2 {[%clk 0:00:38]}  Qxb5 {[%clk 0:00:03]} 53. Kh3 {[%clk 0:00:36]}  Qc6 {[%clk 0:00:03]} 54. Rf8+ {[%clk 0:00:35]}  Kg7 {[%clk 0:00:03]} 55. R2f7+ {[%clk 0:00:36]}  Kg6 {[%clk 0:00:03]} 56. Rf6+ {[%clk 0:00:37]}  Kg5 {[%clk 0:00:04]} 57. Rf5+ {[%clk 0:00:33]}  Kg6 {[%clk 0:00:03]} 58. R8f6+ {[%clk 0:00:34]} 1-0


[Site "https://www.chess.com"]

[Event "Titled Tuesday Blitz August 08 Early 2023"]
[White "Mitrabha, Guha"]
[Black "Paravyan, David"]
[WhiteFideId "5057000"]
[BlackFideId "4194985"]
[WhiteElo "2818"]
[BlackElo "3030"]
[Result "1/2-1/2"]
[Round "7"]
[TimeControl "180+1"]
[Date "2023.08.08"]
[WhiteClock "0:00:04"]
[BlackClock "0:00:05"]
[Board "9"]

1. Nf3 {[%clk 0:02:58]}  Nf6 {[%clk 0:02:59]} 2. c4 {[%clk 0:02:58]}  e6 {[%clk 0:03:00]} 3. g3 {[%clk 0:02:59]}  d5 {[%clk 0:03:00]} 4. Bg2 {[%clk 0:03:00]}  Be7 {[%clk 0:03:01]} 5. O-O {[%clk 0:03:00]}  O-O {[%clk 0:03:02]} 6. b3 {[%clk 0:03:00]}  c5 {[%clk 0:03:01]} 7. Bb2 {[%clk 0:02:58]}  Nc6 {[%clk 0:03:01]} 8. cxd5 {[%clk 0:02:58]}  exd5 {[%clk 0:03:02]} 9. d4 {[%clk 0:02:59]}  Ne4 {[%clk 0:03:02]} 10. dxc5 {[%clk 0:02:57]}  Bxc5 {[%clk 0:03:03]} 11. Nbd2 {[%clk 0:02:56]}  Qe7 {[%clk 0:03:01]} 12. Rc1 {[%clk 0:02:52]}  Rd8 {[%clk 0:02:58]} 13. e3 {[%clk 0:02:46]}  Bg4 {[%clk 0:02:57]} 14. h3 {[%clk 0:02:45]}  Bh5 {[%clk 0:02:55]} 15. Qe2 {[%clk 0:02:38]}  Rac8 {[%clk 0:02:52]} 16. Rfd1 {[%clk 0:02:36]}  Bb6 {[%clk 0:02:51]} 17. Nf1 {[%clk 0:02:31]}  a6 {[%clk 0:02:45]} 18. Ba1 {[%clk 0:02:31]}  f6 {[%clk 0:02:44]} 19. g4 {[%clk 0:02:24]}  Bf7 {[%clk 0:02:32]} 20. N3d2 {[%clk 0:02:22]}  Nxd2 {[%clk 0:02:29]} 21. Rxd2 {[%clk 0:02:14]}  d4 {[%clk 0:02:29]} 22. exd4 {[%clk 0:02:09]}  Qxe2 {[%clk 0:02:28]} 23. Rxe2 {[%clk 0:02:09]}  Nxd4 {[%clk 0:02:28]} 24. Bxd4 {[%clk 0:02:08]}  Bxd4 {[%clk 0:02:27]} 25. Rxc8 {[%clk 0:02:08]}  Rxc8 {[%clk 0:02:28]} 26. Bxb7 {[%clk 0:02:08]}  Rc3 {[%clk 0:02:18]} 27. Bxa6 {[%clk 0:02:02]}  Rxh3 {[%clk 0:02:15]} 28. Rd2 {[%clk 0:02:02]}  Bb6 {[%clk 0:01:27]} 29. Rd6 {[%clk 0:01:55]}  Ba5 {[%clk 0:01:27]} 30. Ng3 {[%clk 0:01:44]}  Rh4 {[%clk 0:01:16]} 31. Be2 {[%clk 0:01:38]}  h5 {[%clk 0:00:59]} 32. Ra6 {[%clk 0:01:26]}  Bc3 {[%clk 0:00:35]} 33. Ra8+ {[%clk 0:01:04]}  Kh7 {[%clk 0:00:35]} 34. Bd3+ {[%clk 0:01:04]}  g6 {[%clk 0:00:34]} 35. gxh5 {[%clk 0:01:04]}  Bd4 {[%clk 0:00:14]} 36. Rd8 {[%clk 0:00:57]}  Rf4 {[%clk 0:00:07]} 37. Ne4 {[%clk 0:00:50]}  Be5 {[%clk 0:00:02]} 38. Rd7 {[%clk 0:00:50]}  Kg8 {[%clk 0:00:02]} 39. hxg6 {[%clk 0:00:31]}  Bxg6 {[%clk 0:00:02]} 40. Nc5 {[%clk 0:00:31]}  Rg4+ {[%clk 0:00:03]} 41. Kf1 {[%clk 0:00:31]}  Bf7 {[%clk 0:00:03]} 42. Be4 {[%clk 0:00:23]}  Rh4 {[%clk 0:00:02]} 43. Ke2 {[%clk 0:00:20]}  Kf8 {[%clk 0:00:02]} 44. Bd5 {[%clk 0:00:19]}  Bh5+ {[%clk 0:00:01]} 45. Bf3 {[%clk 0:00:17]}  Ke8 {[%clk 0:00:01]} 46. Bxh5+ {[%clk 0:00:16]}  Rxh5 {[%clk 0:00:02]} 47. Rd5 {[%clk 0:00:17]}  Rh1 {[%clk 0:00:02]} 48. Nd3 {[%clk 0:00:17]}  Bc7 {[%clk 0:00:01]} 49. Rc5 {[%clk 0:00:17]}  Kd7 {[%clk 0:00:01]} 50. Rc1 {[%clk 0:00:17]}  Rh5 {[%clk 0:00:02]} 51. a4 {[%clk 0:00:17]}  Bd6 {[%clk 0:00:02]} 52. b4 {[%clk 0:00:17]}  Rh4 {[%clk 0:00:03]} 53. Rb1 {[%clk 0:00:17]}  Re4+ {[%clk 0:00:03]} 54. Kd2 {[%clk 0:00:17]}  Kc6 {[%clk 0:00:03]} 55. Rc1+ {[%clk 0:00:17]}  Kb7 {[%clk 0:00:02]} 56. Kc3 {[%clk 0:00:18]}  Re2 {[%clk 0:00:02]} 57. Re1 {[%clk 0:00:16]}  Ra2 {[%clk 0:00:01]} 58. a5 {[%clk 0:00:16]}  Kc6 {[%clk 0:00:02]} 59. Re6 {[%clk 0:00:16]}  f5 {[%clk 0:00:02]} 60. Rf6 {[%clk 0:00:16]}  f4 {[%clk 0:00:02]} 61. Rf5 {[%clk 0:00:13]}  Kd7 {[%clk 0:00:01]} 62. Kc4 {[%clk 0:00:11]}  Ke6 {[%clk 0:00:02]} 63. Rh5 {[%clk 0:00:11]}  Rc2+ {[%clk 0:00:02]} 64. Kd4 {[%clk 0:00:11]}  f3 {[%clk 0:00:02]} 65. Ke3 {[%clk 0:00:11]}  Rc4 {[%clk 0:00:02]} 66. Rb5 {[%clk 0:00:09]}  Rc3 {[%clk 0:00:01]} 67. a6 {[%clk 0:00:08]}  Bc7 {[%clk 0:00:02]} 68. Rb7 {[%clk 0:00:08]}  Kd6 {[%clk 0:00:01]} 69. a7 {[%clk 0:00:08]}  Ra3 {[%clk 0:00:02]} 70. Kd4 {[%clk 0:00:08]}  Rxa7 {[%clk 0:00:02]} 71. Rxa7 {[%clk 0:00:08]}  Bb6+ {[%clk 0:00:02]} 72. Ke4 {[%clk 0:00:08]}  Bxa7 {[%clk 0:00:03]} 73. Kxf3 {[%clk 0:00:09]}  Kd5 {[%clk 0:00:04]} 74. Ke2 {[%clk 0:00:10]}  Ke4 {[%clk 0:00:02]} 75. f3+ {[%clk 0:00:10]}  Kd4 {[%clk 0:00:03]} 76. Kd2 {[%clk 0:00:10]}  Bb6 {[%clk 0:00:03]} 77. Kc2 {[%clk 0:00:10]}  Kc4 {[%clk 0:00:03]} 78. Kd2 {[%clk 0:00:09]}  Bd4 {[%clk 0:00:03]} 79. f4 {[%clk 0:00:09]}  Bb6 {[%clk 0:00:03]} 80. Ke2 {[%clk 0:00:09]}  Bd4 {[%clk 0:00:03]} 81. f5 {[%clk 0:00:08]}  Bf6 {[%clk 0:00:01]} 82. Ke3 {[%clk 0:00:09]}  Kd5 {[%clk 0:00:02]} 83. b5 {[%clk 0:00:09]}  Bd8 {[%clk 0:00:01]} 84. Kf4 {[%clk 0:00:08]}  Kc4 {[%clk 0:00:01]} 85. Ne5+ {[%clk 0:00:06]}  Kxb5 {[%clk 0:00:02]} 86. Nf7 {[%clk 0:00:06]}  Bf6 {[%clk 0:00:01]} 87. Ne5 {[%clk 0:00:05]}  Bd8 {[%clk 0:00:01]} 88. Ke4 {[%clk 0:00:05]}  Kc5 {[%clk 0:00:01]} 89. Nf7 {[%clk 0:00:05]}  Bf6 {[%clk 0:00:02]} 90. Nh6 {[%clk 0:00:05]}  Kd6 {[%clk 0:00:02]} 91. Ng4 {[%clk 0:00:06]}  Ba1 {[%clk 0:00:03]} 92. Kf4 {[%clk 0:00:06]}  Bb2 {[%clk 0:00:03]} 93. Kg5 {[%clk 0:00:07]}  Ke7 {[%clk 0:00:03]} 94. Kg6 {[%clk 0:00:08]}  Ba1 {[%clk 0:00:04]} 95. Ne3 {[%clk 0:00:08]}  Bb2 {[%clk 0:00:04]} 96. Nd5+ {[%clk 0:00:07]}  Kd6 {[%clk 0:00:05]} 97. Nf4 {[%clk 0:00:08]}  Ke7 {[%clk 0:00:05]} 98. Ng2 {[%clk 0:00:06]}  Ba1 {[%clk 0:00:05]} 99. Ne3 {[%clk 0:00:06]}  Bb2 {[%clk 0:00:05]} 100. Nd5+ {[%clk 0:00:06]}  Kd6 {[%clk 0:00:05]} 101. Nb6 {[%clk 0:00:07]}  Ba1 {[%clk 0:00:06]} 102. Kf7 {[%clk 0:00:05]}  Ke5 {[%clk 0:00:05]} 103. Kg6 {[%clk 0:00:06]}  Kd6 {[%clk 0:00:05]} 104. Kg5 {[%clk 0:00:06]}  Ke7 {[%clk 0:00:05]} 105. Kg6 {[%clk 0:00:04]}  Kd6 {[%clk 0:00:05]} 1/2-1/2


[Site "https://www.chess.com"]